[Event "*** SCC Grand Prix: Titled Tuesday Blitz"]
[Site "Chess.com"]
[Date "2020.07.14"]
[Round "5"]
[White "Oglob71"]
[Black "Evgeny81"]
[Result "1/2-1/2"]
[WhiteElo "2526"]
[BlackElo "2747"]
[TimeControl "180+1"]
[EndTime "10:58:05 PDT"]
[Termination "Game drawn by repetition"]

1. d4 {[%clk 0:03:00.9]} 1... Nf6 {[%clk 0:02:59.4]} 2. Nf3 {[%clk 0:03:00.1]}
2... d5 {[%clk 0:02:58.5]} 3. c4 {[%clk 0:02:59.5]} 3... dxc4 {[%clk 0:02:58.9]}
4. e3 {[%clk 0:02:59.5]} 4... e6 {[%clk 0:02:59]} 5. Bxc4 {[%clk 0:02:59.5]}
5... a6 {[%clk 0:02:59.7]} 6. O-O {[%clk 0:02:58.9]} 6... b5 {[%clk 0:02:59.8]}
7. Be2 {[%clk 0:02:59.2]} 7... Bb7 {[%clk 0:03:00.2]} 8. a4 {[%clk 0:02:59.4]}
8... b4 {[%clk 0:03:00]} 9. Nbd2 {[%clk 0:02:57.8]} 9... c5 {[%clk 0:03:00]} 10.
Nb3 {[%clk 0:02:53.9]} 10... Nbd7 {[%clk 0:02:57.3]} 11. dxc5 {[%clk 0:02:51.9]}
11... Nxc5 {[%clk 0:02:56.9]} 12. Qxd8+ {[%clk 0:02:51.2]} 12... Rxd8 {[%clk
0:02:57]} 13. Na5 {[%clk 0:02:45.3]} 13... Bd5 {[%clk 0:02:34.9]} 14. Bd2 {[%clk
0:02:43.1]} 14... Rb8 {[%clk 0:02:32.9]} 15. Nd4 {[%clk 0:02:39.7]} 15... Nfe4
{[%clk 0:02:21.9]} 16. Be1 {[%clk 0:02:38.7]} 16... Rb6 {[%clk 0:02:12.9]} 17.
f3 {[%clk 0:02:34.7]} 17... Nf6 {[%clk 0:02:12.8]} 18. e4 {[%clk 0:02:29.4]}
18... Ba8 {[%clk 0:02:12.5]} 19. Nc4 {[%clk 0:02:23.6]} 19... Rb8 {[%clk
0:02:10.1]} 20. a5 {[%clk 0:02:23.9]} 20... Nfd7 {[%clk 0:02:08.9]} 21. Bg3
{[%clk 0:02:20.9]} 21... Rc8 {[%clk 0:02:01.8]} 22. Nd6+ {[%clk 0:02:18.5]}
22... Bxd6 {[%clk 0:02:01.2]} 23. Bxd6 {[%clk 0:02:19.1]} 23... e5 {[%clk
0:01:50.2]} 24. Nf5 {[%clk 0:02:18.2]} 24... g6 {[%clk 0:01:49.7]} 25. Ne3
{[%clk 0:01:54]} 25... Nb3 {[%clk 0:01:37.4]} 26. Rad1 {[%clk 0:01:51.2]} 26...
Nd4 {[%clk 0:01:35.1]} 27. Bxa6 {[%clk 0:01:47.6]} 27... Rc6 {[%clk 0:01:34.9]}
28. Nc4 {[%clk 0:01:39.6]} 28... Rxa6 {[%clk 0:01:32.3]} 29. Bxb4 {[%clk
0:01:37.4]} 29... Nb5 {[%clk 0:01:07.4]} 30. Rd2 {[%clk 0:01:25]} 30... f6
{[%clk 0:00:55.3]} 31. Rfd1 {[%clk 0:01:24.4]} 31... Bc6 {[%clk 0:00:55.4]} 32.
Nb6 {[%clk 0:01:16.1]} 32... Ra7 {[%clk 0:00:55.4]} 33. Nc8 {[%clk 0:01:12.9]}
33... Rc7 {[%clk 0:00:48.9]} 34. Nd6+ {[%clk 0:01:12.9]} 34... Nxd6 {[%clk
0:00:47.8]} 35. Bxd6 {[%clk 0:01:13.4]} 35... Ra7 {[%clk 0:00:45.8]} 36. Bc5
{[%clk 0:01:07.1]} 36... Rxa5 {[%clk 0:00:40.3]} 37. b4 {[%clk 0:01:07.1]} 37...
Ra8 {[%clk 0:00:29.8]} 38. Rd6 {[%clk 0:01:06.6]} 38... Bb5 {[%clk 0:00:27]} 39.
Re6+ {[%clk 0:01:04]} 39... Kd8 {[%clk 0:00:27.5]} 40. Rxf6 {[%clk 0:01:03]}
40... Kc7 {[%clk 0:00:18.3]} 41. Rf7 {[%clk 0:01:03.1]} 41... Rad8 {[%clk
0:00:15.7]} 42. Rd5 {[%clk 0:00:57.9]} 42... Bc6 {[%clk 0:00:12]} 43. Rxe5
{[%clk 0:00:58]} 43... Kc8 {[%clk 0:00:12]} 44. Ree7 {[%clk 0:00:57.9]} 44...
Bb5 {[%clk 0:00:09.7]} 45. Rxh7 {[%clk 0:00:49.1]} 45... Rxh7 {[%clk 0:00:09.7]}
46. Rxh7 {[%clk 0:00:49.1]} 46... Ne5 {[%clk 0:00:10.3]} 47. Re7 {[%clk
0:00:36.5]} 47... Nd3 {[%clk 0:00:10]} 48. h4 {[%clk 0:00:29.9]} 48... Rh8
{[%clk 0:00:09.6]} 49. g3 {[%clk 0:00:28.4]} 49... Kd8 {[%clk 0:00:08.4]} 50.
Rg7 {[%clk 0:00:27.5]} 50... Be8 {[%clk 0:00:06.4]} 51. Bd4 {[%clk 0:00:25.6]}
51... Rf8 {[%clk 0:00:05.7]} 52. f4 {[%clk 0:00:22]} 52... Nxb4 {[%clk
0:00:04.8]} 53. Kf2 {[%clk 0:00:13.8]} 53... Nc6 {[%clk 0:00:02.9]} 54. Bc5
{[%clk 0:00:13.8]} 54... Rf6 {[%clk 0:00:02]} 55. Ke3 {[%clk 0:00:12.4]} 55...
Re6 {[%clk 0:00:02.3]} 56. e5 {[%clk 0:00:11.5]} 56... Bd7 {[%clk 0:00:02.4]}
57. Ke4 {[%clk 0:00:09.2]} 57... Kc7 {[%clk 0:00:02.5]} 58. Bd6+ {[%clk
0:00:09.4]} 58... Kd8 {[%clk 0:00:02.5]} 59. h5 {[%clk 0:00:08.5]} 59... gxh5
{[%clk 0:00:02.2]} 60. Rh7 {[%clk 0:00:08.9]} 60... Re8 {[%clk 0:00:02.1]} 61.
f5 {[%clk 0:00:09.1]} 61... Kc8 {[%clk 0:00:02.6]} 62. Rxh5 {[%clk 0:00:09.2]}
62... Nd8 {[%clk 0:00:03]} 63. Rh7 {[%clk 0:00:09.5]} 63... Bc6+ {[%clk
0:00:03.6]} 64. Kf4 {[%clk 0:00:09.4]} 64... Bd7 {[%clk 0:00:04.5]} 65. e6
{[%clk 0:00:09.8]} 65... Bxe6 {[%clk 0:00:04.8]} 66. fxe6 {[%clk 0:00:10.3]}
66... Nxe6+ {[%clk 0:00:05.1]} 67. Kf5 {[%clk 0:00:10.7]} 67... Kd8 {[%clk
0:00:05.4]} 68. Ra7 {[%clk 0:00:10.5]} 68... Nd4+ {[%clk 0:00:05.6]} 69. Kf4
{[%clk 0:00:09.2]} 69... Nc6 {[%clk 0:00:04.8]} 70. Rc7 {[%clk 0:00:08.5]} 70...
Nd4 {[%clk 0:00:04]} 71. Ra7 {[%clk 0:00:08.4]} 71... Ne6+ {[%clk 0:00:04.1]}
72. Kf5 {[%clk 0:00:08.1]} 72... Nd4+ {[%clk 0:00:04.5]} 73. Kf4 {[%clk
0:00:08.3]} 1/2-1/2

[Event "*** SCC Grand Prix: Titled Tuesday Blitz"]
[Site "Chess.com"]
[Date "2020.07.14"]
[Round "5"]
[White "AvitalBor"]
[Black "Korona_91"]
[Result "1-0"]
[WhiteElo "2730"]
[BlackElo "2494"]
[TimeControl "180+1"]
[EndTime "10:58:10 PDT"]
[Termination "AvitalBor won on time"]

1. e4 {[%clk 0:03:00.9]} 1... e6 {[%clk 0:02:59]} 2. d4 {[%clk 0:03:00.7]} 2...
d5 {[%clk 0:02:59.5]} 3. Nd2 {[%clk 0:03:01.6]} 3... a6 {[%clk 0:02:58.8]} 4.
Ngf3 {[%clk 0:03:00.7]} 4... c5 {[%clk 0:02:58.8]} 5. exd5 {[%clk 0:03:00]} 5...
exd5 {[%clk 0:02:59.7]} 6. c3 {[%clk 0:02:55.1]} 6... Nc6 {[%clk 0:02:58.1]} 7.
dxc5 {[%clk 0:02:36.2]} 7... Bxc5 {[%clk 0:02:56.8]} 8. Nb3 {[%clk 0:02:36.4]}
8... Bb6 {[%clk 0:02:55.6]} 9. Bd3 {[%clk 0:02:36]} 9... Qe7+ {[%clk 0:02:55.5]}
10. Qe2 {[%clk 0:02:35.1]} 10... Bg4 {[%clk 0:02:51]} 11. O-O {[%clk 0:02:24.7]}
11... Qxe2 {[%clk 0:02:50.1]} 12. Bxe2 {[%clk 0:02:25]} 12... Nf6 {[%clk
0:02:49.2]} 13. h3 {[%clk 0:02:24.5]} 13... Bh5 {[%clk 0:02:40.2]} 14. g4 {[%clk
0:01:59.8]} 14... Bg6 {[%clk 0:02:39.1]} 15. Nbd4 {[%clk 0:01:59.8]} 15... O-O
{[%clk 0:02:20.8]} 16. Be3 {[%clk 0:01:59.5]} 16... Nxd4 {[%clk 0:02:03.2]} 17.
Bxd4 {[%clk 0:01:56.3]} 17... Nd7 {[%clk 0:01:44.4]} 18. Rfe1 {[%clk 0:01:49.4]}
18... Rfe8 {[%clk 0:01:42.6]} 19. Rad1 {[%clk 0:01:40.7]} 19... Be4 {[%clk
0:01:40]} 20. Bxb6 {[%clk 0:01:34.9]} 20... Nxb6 {[%clk 0:01:40.9]} 21. Nd4
{[%clk 0:01:34.9]} 21... f6 {[%clk 0:01:31.3]} 22. Bf1 {[%clk 0:01:31.2]} 22...
Bg6 {[%clk 0:01:24.2]} 23. Bg2 {[%clk 0:01:20.2]} 23... Rxe1+ {[%clk 0:01:23.7]}
24. Rxe1 {[%clk 0:01:19.8]} 24... Re8 {[%clk 0:01:24.2]} 25. Rxe8+ {[%clk
0:01:14]} 25... Bxe8 {[%clk 0:01:25.1]} 26. Kf1 {[%clk 0:01:13.6]} 26... Kf7
{[%clk 0:01:22.1]} 27. Ke2 {[%clk 0:01:11.5]} 27... Bd7 {[%clk 0:01:15.4]} 28.
b3 {[%clk 0:01:11.2]} 28... Ke7 {[%clk 0:01:15.6]} 29. Ke3 {[%clk 0:01:07.7]}
29... Kd6 {[%clk 0:01:15]} 30. Ne2 {[%clk 0:01:06.2]} 30... Nc8 {[%clk
0:01:11.4]} 31. Nf4 {[%clk 0:01:03.6]} 31... Ne7 {[%clk 0:01:11.9]} 32. Nh5
{[%clk 0:01:03.5]} 32... f5 {[%clk 0:01:09.7]} 33. g5 {[%clk 0:01:00]} 33... h6
{[%clk 0:01:00.1]} 34. f4 {[%clk 0:00:56.3]} 34... hxg5 {[%clk 0:00:59.7]} 35.
fxg5 {[%clk 0:00:56.5]} 35... g6 {[%clk 0:01:00.3]} 36. Nf4 {[%clk 0:00:56.4]}
36... a5 {[%clk 0:00:56.5]} 37. h4 {[%clk 0:00:54.2]} 37... b5 {[%clk
0:00:51.2]} 38. a3 {[%clk 0:00:43]} 38... Be8 {[%clk 0:00:48]} 39. b4 {[%clk
0:00:40.7]} 39... axb4 {[%clk 0:00:47.2]} 40. axb4 {[%clk 0:00:37.1]} 40... Bf7
{[%clk 0:00:45.7]} 41. Bf3 {[%clk 0:00:36.2]} 41... Nc6 {[%clk 0:00:43.8]} 42.
h5 {[%clk 0:00:31.6]} 42... gxh5 {[%clk 0:00:44.7]} 43. g6 {[%clk 0:00:31.8]}
43... Bg8 {[%clk 0:00:44.2]} 44. Bxh5 {[%clk 0:00:31.3]} 44... Ne5 {[%clk
0:00:33.3]} 45. Be2 {[%clk 0:00:30.7]} 45... Ke7 {[%clk 0:00:29.8]} 46. Kd4
{[%clk 0:00:24.8]} 46... Kd6 {[%clk 0:00:22.8]} 47. Bxb5 {[%clk 0:00:23]} 47...
Nf3+ {[%clk 0:00:23.3]} 48. Ke3 {[%clk 0:00:21.8]} 48... Ng5 {[%clk 0:00:23.7]}
49. Bd3 {[%clk 0:00:19]} 49... Ke5 {[%clk 0:00:23.8]} 50. Be2 {[%clk 0:00:16.5]}
50... Ne4 {[%clk 0:00:23.4]} 51. Nd3+ {[%clk 0:00:13.5]} 51... Kf6 {[%clk
0:00:23.7]} 52. b5 {[%clk 0:00:13.1]} 52... Nxc3 {[%clk 0:00:21.9]} 53. b6
{[%clk 0:00:13.2]} 53... d4+ {[%clk 0:00:22]} 54. Kxd4 {[%clk 0:00:12.8]} 54...
Nxe2+ {[%clk 0:00:22]} 55. Kc5 {[%clk 0:00:13.2]} 55... Nc3 {[%clk 0:00:12.3]}
56. b7 {[%clk 0:00:12.4]} 56... Ne4+ {[%clk 0:00:11.7]} 57. Kb6 {[%clk
0:00:08.6]} 57... Bc4 {[%clk 0:00:11.5]} 58. b8=Q {[%clk 0:00:07.4]} 58... Bxd3
{[%clk 0:00:11.7]} 59. Qd8+ {[%clk 0:00:07.6]} 59... Kxg6 {[%clk 0:00:12]} 60.
Qxd3 {[%clk 0:00:08.3]} 60... Kf6 {[%clk 0:00:12.5]} 61. Qd4+ {[%clk 0:00:08.3]}
61... Ke6 {[%clk 0:00:12.4]} 62. Kc6 {[%clk 0:00:09.2]} 62... Kf7 {[%clk
0:00:12.3]} 63. Qe5 {[%clk 0:00:09.1]} 63... Kg6 {[%clk 0:00:12.4]} 64. Kd5
{[%clk 0:00:09.2]} 64... Ng5 {[%clk 0:00:08.2]} 65. Qd6+ {[%clk 0:00:08.5]}
65... Kh5 {[%clk 0:00:08]} 66. Qh2+ {[%clk 0:00:07.8]} 66... Kg6 {[%clk
0:00:07.9]} 67. Qg1 {[%clk 0:00:08]} 67... Kh5 {[%clk 0:00:07.7]} 68. Qf1 {[%clk
0:00:07.3]} 68... Kg6 {[%clk 0:00:07.8]} 69. Ke5 {[%clk 0:00:07.5]} 69... Nf7+
{[%clk 0:00:07.6]} 70. Kf4 {[%clk 0:00:07.8]} 70... Nh6 {[%clk 0:00:04.6]} 71.
Qg2+ {[%clk 0:00:07.6]} 71... Kh7 {[%clk 0:00:04.1]} 72. Ke5 {[%clk 0:00:07.2]}
72... Kh8 {[%clk 0:00:02.7]} 73. Ke6 {[%clk 0:00:06.7]} 73... f4 {[%clk
0:00:02.1]} 74. Qg6 {[%clk 0:00:06.3]} 1-0

[Event "*** SCC Grand Prix: Titled Tuesday Blitz"]
[Site "Chess.com"]
[Date "2020.07.14"]
[Round "5"]
[White "kidagent"]
[Black "Falia-p"]
[Result "1/2-1/2"]
[WhiteElo "2227"]
[BlackElo "2395"]
[TimeControl "180+1"]
[EndTime "10:58:10 PDT"]
[Termination "Game drawn - insufficient material"]

1. e4 {[%clk 0:03:00.9]} 1... e5 {[%clk 0:02:58.9]} 2. Nf3 {[%clk 0:03:00.6]}
2... Nc6 {[%clk 0:02:59]} 3. Bb5 {[%clk 0:03:00.1]} 3... a6 {[%clk 0:02:58.8]}
4. Ba4 {[%clk 0:02:59.8]} 4... Nf6 {[%clk 0:02:58.6]} 5. O-O {[%clk 0:02:58.6]}
5... b5 {[%clk 0:02:58.4]} 6. Bb3 {[%clk 0:02:58]} 6... Bc5 {[%clk 0:02:59]} 7.
d3 {[%clk 0:02:55.5]} 7... d6 {[%clk 0:02:54]} 8. a4 {[%clk 0:02:53.5]} 8... Rb8
{[%clk 0:02:52.8]} 9. c3 {[%clk 0:02:51.7]} 9... h6 {[%clk 0:02:48.6]} 10. h3
{[%clk 0:02:47]} 10... O-O {[%clk 0:02:46.3]} 11. Re1 {[%clk 0:02:44]} 11... Bb6
{[%clk 0:02:27.3]} 12. Nbd2 {[%clk 0:02:41.9]} 12... Ne7 {[%clk 0:02:25]} 13.
Nf1 {[%clk 0:02:40.1]} 13... Ng6 {[%clk 0:02:25.1]} 14. Be3 {[%clk 0:02:32.4]}
14... Bxe3 {[%clk 0:02:17.8]} 15. Nxe3 {[%clk 0:02:31.7]} 15... Nf4 {[%clk
0:02:17.4]} 16. axb5 {[%clk 0:02:29.5]} 16... axb5 {[%clk 0:02:16]} 17. Nf5
{[%clk 0:02:14.3]} 17... Bxf5 {[%clk 0:02:13]} 18. exf5 {[%clk 0:02:13.9]} 18...
Qd7 {[%clk 0:02:04.2]} 19. Nh4 {[%clk 0:02:12]} 19... c5 {[%clk 0:01:58.3]} 20.
Kh2 {[%clk 0:02:09.2]} 20... Qc6 {[%clk 0:01:48.1]} 21. g3 {[%clk 0:02:04.6]}
21... Nxd3 {[%clk 0:01:41.1]} 22. Bxf7+ {[%clk 0:01:50.5]} 22... Rxf7 {[%clk
0:01:42]} 23. Qxd3 {[%clk 0:01:51]} 23... e4 {[%clk 0:01:30.1]} 24. Qc2 {[%clk
0:01:40.5]} 24... Re8 {[%clk 0:01:22.1]} 25. Rad1 {[%clk 0:01:38.6]} 25... d5
{[%clk 0:01:20.5]} 26. Qe2 {[%clk 0:01:26.4]} 26... Nd7 {[%clk 0:01:12.6]} 27.
f4 {[%clk 0:01:21]} 27... c4 {[%clk 0:01:09.7]} 28. Qd2 {[%clk 0:01:12.8]} 28...
Nf6 {[%clk 0:01:08.4]} 29. Ng6 {[%clk 0:01:12.2]} 29... Qc5 {[%clk 0:00:55.3]}
30. Ne5 {[%clk 0:01:08.2]} 30... Rfe7 {[%clk 0:00:52.8]} 31. Ra1 {[%clk
0:01:02.9]} 31... Rxe5 {[%clk 0:00:50.4]} 32. fxe5 {[%clk 0:01:01.3]} 32... Rxe5
{[%clk 0:00:51.3]} 33. Qf4 {[%clk 0:00:50.5]} 33... Re8 {[%clk 0:00:49.2]} 34.
Ra6 {[%clk 0:00:46.3]} 34... b4 {[%clk 0:00:41.5]} 35. Rxf6 {[%clk 0:00:40.9]}
35... gxf6 {[%clk 0:00:40.4]} 36. Re2 {[%clk 0:00:38.9]} 36... Qf8 {[%clk
0:00:34.8]} 37. cxb4 {[%clk 0:00:34.8]} 37... Kh7 {[%clk 0:00:30.4]} 38. b5
{[%clk 0:00:28.5]} 38... Qe7 {[%clk 0:00:27.2]} 39. b6 {[%clk 0:00:20.1]} 39...
d4 {[%clk 0:00:22.4]} 40. Qc7 {[%clk 0:00:16.9]} 40... d3 {[%clk 0:00:16.1]} 41.
Rxe4 {[%clk 0:00:14.6]} 41... Qxc7 {[%clk 0:00:16.2]} 42. bxc7 {[%clk
0:00:14.6]} 42... Rc8 {[%clk 0:00:15.2]} 43. Rxc4 {[%clk 0:00:13.3]} 43... d2
{[%clk 0:00:14]} 44. Rd4 {[%clk 0:00:13.8]} 44... Rxc7 {[%clk 0:00:13.5]} 45.
Rxd2 {[%clk 0:00:14.3]} 45... Rc5 {[%clk 0:00:13.4]} 46. g4 {[%clk 0:00:13.9]}
46... Rb5 {[%clk 0:00:13.7]} 47. Kg3 {[%clk 0:00:13.9]} 47... h5 {[%clk
0:00:13.1]} 48. Kf4 {[%clk 0:00:12.2]} 48... hxg4 {[%clk 0:00:13.2]} 49. hxg4
{[%clk 0:00:12]} 49... Rb4+ {[%clk 0:00:13.6]} 50. Kf3 {[%clk 0:00:11.8]} 50...
Kh6 {[%clk 0:00:14]} 51. Rh2+ {[%clk 0:00:10.4]} 51... Kg7 {[%clk 0:00:12.9]}
52. Rg2 {[%clk 0:00:09.9]} 52... Kh6 {[%clk 0:00:12.4]} 53. Ke3 {[%clk
0:00:10.1]} 53... Kg5 {[%clk 0:00:12.4]} 54. Kd3 {[%clk 0:00:10.3]} 54... Rb3+
{[%clk 0:00:11.8]} 55. Kc2 {[%clk 0:00:09.5]} 55... Rf3 {[%clk 0:00:10.7]} 56.
b4 {[%clk 0:00:08.7]} 56... Kh4 {[%clk 0:00:10.3]} 57. Kb2 {[%clk 0:00:07.7]}
57... Kh3 {[%clk 0:00:10.3]} 58. Rc2 {[%clk 0:00:07.6]} 58... Kxg4 {[%clk
0:00:10]} 59. b5 {[%clk 0:00:07.7]} 59... Rxf5 {[%clk 0:00:10.1]} 60. Rc4+
{[%clk 0:00:06.6]} 60... Kg3 {[%clk 0:00:08.2]} 61. Rb4 {[%clk 0:00:07.5]} 61...
Rd5 {[%clk 0:00:06.9]} 62. b6 {[%clk 0:00:07.7]} 62... Rd8 {[%clk 0:00:07]} 63.
b7 {[%clk 0:00:07.9]} 63... Rb8 {[%clk 0:00:07.2]} 64. Rb5 {[%clk 0:00:08]}
64... Kg4 {[%clk 0:00:06.9]} 65. Kc3 {[%clk 0:00:08.5]} 65... f5 {[%clk
0:00:07.3]} 66. Kd4 {[%clk 0:00:09]} 66... f4 {[%clk 0:00:07.1]} 67. Ke4 {[%clk
0:00:09.2]} 67... Re8+ {[%clk 0:00:06.5]} 68. Kd5 {[%clk 0:00:08.4]} 68... Kg3
{[%clk 0:00:05.9]} 69. b8=Q {[%clk 0:00:07.4]} 69... Rxb8 {[%clk 0:00:05.9]} 70.
Rxb8 {[%clk 0:00:08]} 70... f3 {[%clk 0:00:06.8]} 71. Rf8 {[%clk 0:00:07.3]}
71... f2 {[%clk 0:00:06.6]} 72. Ke4 {[%clk 0:00:07.8]} 72... Kg2 {[%clk
0:00:07]} 73. Rg8+ {[%clk 0:00:07.3]} 73... Kh1 {[%clk 0:00:05.9]} 74. Rf8
{[%clk 0:00:05.9]} 74... Kg1 {[%clk 0:00:05.9]} 75. Ke3 {[%clk 0:00:05.8]} 75...
f1=Q {[%clk 0:00:04.3]} 76. Rxf1+ {[%clk 0:00:06.2]} 76... Kxf1 {[%clk
0:00:04.4]} 1/2-1/2

[Event "*** SCC Grand Prix: Titled Tuesday Blitz"]
[Site "Chess.com"]
[Date "2020.07.14"]
[Round "5"]
[White "Semen_Khanin"]
[Black "Mfcyryd"]
[Result "0-1"]
[WhiteElo "2752"]
[BlackElo "2567"]
[TimeControl "180+1"]
[EndTime "10:58:11 PDT"]
[Termination "Mfcyryd won by resignation"]

1. e4 {[%clk 0:03:00.9]} 1... c6 {[%clk 0:03:00.2]} 2. d4 {[%clk 0:03:00.8]}
2... d5 {[%clk 0:03:01.1]} 3. Nd2 {[%clk 0:03:01.6]} 3... dxe4 {[%clk
0:03:00.9]} 4. Nxe4 {[%clk 0:03:02.5]} 4... Nf6 {[%clk 0:03:01.8]} 5. Nxf6+
{[%clk 0:03:02.9]} 5... exf6 {[%clk 0:03:02.7]} 6. c3 {[%clk 0:03:03.6]} 6...
Bd6 {[%clk 0:03:03.6]} 7. Bd3 {[%clk 0:03:04.4]} 7... O-O {[%clk 0:03:04.5]} 8.
Qc2 {[%clk 0:03:05.1]} 8... h6 {[%clk 0:03:03.4]} 9. Ne2 {[%clk 0:03:05]} 9...
Na6 {[%clk 0:03:03.4]} 10. O-O {[%clk 0:03:04]} 10... Nc7 {[%clk 0:03:03.4]} 11.
Bf4 {[%clk 0:03:03.6]} 11... Nd5 {[%clk 0:03:03.4]} 12. Bxd6 {[%clk 0:02:57.2]}
12... Qxd6 {[%clk 0:03:04.3]} 13. a3 {[%clk 0:02:56.8]} 13... b5 {[%clk
0:02:55.3]} 14. a4 {[%clk 0:02:54.1]} 14... b4 {[%clk 0:02:37.1]} 15. c4 {[%clk
0:02:53.1]} 15... Nf4 {[%clk 0:02:33.5]} 16. Nxf4 {[%clk 0:02:53.3]} 16... Qxf4
{[%clk 0:02:32]} 17. Bh7+ {[%clk 0:02:53.9]} 17... Kh8 {[%clk 0:02:31]} 18. Be4
{[%clk 0:02:54.1]} 18... Rb8 {[%clk 0:02:16.5]} 19. g3 {[%clk 0:02:53.9]} 19...
Qd6 {[%clk 0:02:11.5]} 20. Rad1 {[%clk 0:02:37.3]} 20... Bg4 {[%clk 0:02:03.8]}
21. Rd2 {[%clk 0:02:37.3]} 21... a5 {[%clk 0:02:00.4]} 22. Bg2 {[%clk
0:02:36.1]} 22... Rfe8 {[%clk 0:01:51.5]} 23. c5 {[%clk 0:02:20.9]} 23... Qd7
{[%clk 0:01:49.1]} 24. d5 {[%clk 0:02:21.2]} 24... cxd5 {[%clk 0:01:45.1]} 25.
Rxd5 {[%clk 0:02:21.4]} 25... Qc7 {[%clk 0:01:42.5]} 26. c6 {[%clk 0:02:21.1]}
26... Rbd8 {[%clk 0:01:38.7]} 27. Rb5 {[%clk 0:02:11.6]} 27... Bc8 {[%clk
0:01:34.2]} 28. Rc1 {[%clk 0:02:08.6]} 28... g6 {[%clk 0:01:28.6]} 29. Rd5
{[%clk 0:02:06.1]} 29... Rxd5 {[%clk 0:01:26.7]} 30. Bxd5 {[%clk 0:02:06.4]}
30... Kg7 {[%clk 0:01:27.3]} 31. Qc4 {[%clk 0:02:01.2]} 31... Qe5 {[%clk
0:01:24.2]} 32. Bxf7 {[%clk 0:01:55.1]} 32... Rd8 {[%clk 0:01:23.8]} 33. c7
{[%clk 0:01:38.7]} 33... Rd4 {[%clk 0:01:15.7]} 34. Qb3 {[%clk 0:01:34.8]} 34...
Rd2 {[%clk 0:01:00.4]} 35. Bg8 {[%clk 0:01:14.5]} 35... Qe8 {[%clk 0:00:52.8]}
36. Bd5 {[%clk 0:01:09.6]} 36... Qe5 {[%clk 0:00:52.1]} 37. Bg2 {[%clk
0:01:07.7]} 37... Qxb2 {[%clk 0:00:49.5]} 38. Qe3 {[%clk 0:01:06.5]} 38... Qxc1+
{[%clk 0:00:47.3]} 39. Bf1 {[%clk 0:01:06.8]} 39... Kf7 {[%clk 0:00:39.4]} 40.
Qxh6 {[%clk 0:00:58.2]} 40... Ba6 {[%clk 0:00:34]} 41. Qh7+ {[%clk 0:00:55.5]}
41... Ke6 {[%clk 0:00:31.8]} 42. Qg8+ {[%clk 0:00:46.6]} 42... Kf5 {[%clk
0:00:31.6]} 43. c8=Q+ {[%clk 0:00:25.3]} 43... Bxc8 {[%clk 0:00:30.6]} 44. g4+
{[%clk 0:00:25.6]} 44... Kf4 {[%clk 0:00:18.1]} 45. Qxg6 {[%clk 0:00:25.8]}
45... Qc3 {[%clk 0:00:14.3]} 46. Qh6+ {[%clk 0:00:21.4]} 46... Kxg4 {[%clk
0:00:14.5]} 47. Qg6+ {[%clk 0:00:05.3]} 47... Kf4 {[%clk 0:00:14.3]} 48. Qh6+
{[%clk 0:00:05.7]} 48... Ke5 {[%clk 0:00:14]} 49. Qh5+ {[%clk 0:00:04]} 49...
Bf5 {[%clk 0:00:12.8]} 50. Qe8+ {[%clk 0:00:03.7]} 50... Kf4 {[%clk 0:00:12.7]}
51. Qh5 {[%clk 0:00:02.6]} 51... Rd3 {[%clk 0:00:07.2]} 52. Qh4+ {[%clk
0:00:02.2]} 52... Ke5 {[%clk 0:00:07.4]} 53. Qh8 {[%clk 0:00:02.6]} 53... Rd6
{[%clk 0:00:05.8]} 54. Qe8+ {[%clk 0:00:02.4]} 54... Re6 {[%clk 0:00:06.1]} 55.
Qb8+ {[%clk 0:00:02.6]} 55... Kd5 {[%clk 0:00:05.3]} 56. Qb5+ {[%clk 0:00:02.7]}
56... Qc5 {[%clk 0:00:05.2]} 57. Bg2+ {[%clk 0:00:03]} 57... Be4 {[%clk
0:00:04]} 58. Qd3+ {[%clk 0:00:01.7]} 58... Ke5 {[%clk 0:00:04.5]} 59. Bxe4
{[%clk 0:00:01.9]} 59... Qd4 {[%clk 0:00:04.4]} 60. Qg3+ {[%clk 0:00:01.6]}
60... Kxe4 {[%clk 0:00:03.2]} 61. Qg4+ {[%clk 0:00:02.5]} 61... Kd5 {[%clk
0:00:04.1]} 62. Qf3+ {[%clk 0:00:03]} 62... Kc4 {[%clk 0:00:04.3]} 63. Qf5
{[%clk 0:00:01.1]} 63... Re1+ {[%clk 0:00:03.4]} 64. Kg2 {[%clk 0:00:01.6]}
64... Qd5+ {[%clk 0:00:04.3]} 65. Qf3 {[%clk 0:00:01.9]} 65... Qxf3+ {[%clk
0:00:03.5]} 0-1